fUST/lending_fUST_20240520
["ID","MTS","AMOUNT","RATE_DAILY","PERIOD"]
[327539201,1716197832020,-500.0,0.00043835,30]
[327539202,1716197832042,-500.0,0.00043835,30]
[327539203,1716197832068,-500.0,0.00043835,30]
[327539204,1716197832093,-504.88792004,0.00043835,30]
[327539205,1716197832116,-500.0,0.00043835,30]
[327539206,1716197832139,-501.39228689,0.00043835,30]
[327539207,1716197832167,-500.0,0.00043835,30]
[327539208,1716197832192,-500.0,0.00043835,30]
[327539209,1716197832215,-504.70478086,0.00043835,30]
[327539210,1716197832239,-500.0,0.00043835,30]
[327539211,1716197832261,-529.29545396,0.00043835,30]
[327539212,1716197832284,-500.0,0.00043835,30]
[327539213,1716197832308,-500.0,0.00043835,30]
[327539214,1716197832331,-500.0,0.00043835,30]
[327539215,1716197832354,-500.0,0.00043835,30]
[327539216,1716197832377,-504.37386187,0.00043835,30]
[327539217,1716197832400,-518.25291392,0.00043835,30]
[327539218,1716197832422,-500.0,0.00043835,30]
[327539219,1716197832446,-500.0,0.00043835,30]
[327539220,1716197832470,-500.0,0.00043835,30]
[327539221,1716197832493,-500.0,0.00043835,30]
[327539222,1716197832516,-500.0,0.00043835,30]
[327539223,1716197832538,-500.0,0.00043835,30]
[327539224,1716197832560,-500.0,0.00043835,30]
[327539225,1716197832583,-500.0,0.00043835,30]
[327539226,1716197832606,-500.0,0.00043835,30]
[327539227,1716197832629,-500.0,0.00043835,30]
[327539228,1716197832654,-500.0,0.00043835,30]
[327539229,1716197832682,-500.0,0.00043835,30]
[327539230,1716197832705,-217.49377922,0.00043835,30]
[327539231,1716197832729,-502.03194983,0.00043835,30]
[327539232,1716197832753,-500.0,0.00043835,30]
[327539233,1716197832777,-500.0,0.00043835,30]
[327539234,1716197832800,-500.0,0.00043835,30]
[327539235,1716197832824,-509.13943104,0.00043835,30]
[327539236,1716197832848,-500.0,0.00043835,30]
[327539237,1716197832872,-500.0,0.00043835,30]
[327539238,1716197832896,-548.15783236,0.00043835,30]
[327539239,1716197832919,-500.0,0.00043835,30]
[327539240,1716197832944,-501.73536619,0.00043835,30]
[327539241,1716197832968,-500.0,0.00043835,30]
[327539242,1716197832992,-508.94999213,0.00043835,30]
[327539243,1716197833016,-500.0,0.00043835,30]
[327539244,1716197833040,-500.0,0.00043835,30]
[327539245,1716197833064,-509.28438245,0.00043835,30]
[327539246,1716197833091,-500.0,0.00043835,30]
[327539247,1716197833114,-427.34871538,0.00043835,30]
[327539248,1716197833138,-504.02252066,0.00043835,30]
[327539249,1716197833164,-500.0,0.00043835,30]
[327539250,1716197833189,-500.0,0.00043835,31]
[327539251,1716197833300,-500.0,0.00043835,32]
[327539252,1716197833328,-500.0,0.00043835,33]
[327539253,1716197833350,-500.0,0.00043835,34]
[327539254,1716197833373,-500.0,0.00043835,35]
[327539255,1716197833396,-500.0,0.00043835,36]
[327539256,1716197833418,-502.12505677,0.00043835,37]
[327539257,1716197833441,-500.0,0.00043835,30]
[327539258,1716197833465,-643.67919596,0.00043835,30]
[327539259,1716197833486,-501.58173211,0.00043835,30]
[327539260,1716197833510,-500.0,0.00043835,30]
[327539261,1716197833533,-500.0,0.00043835,31]
[327539262,1716197833556,-500.0,0.00043835,32]
[327539263,1716197833578,-500.0,0.00043835,33]
[327539264,1716197833603,-500.0,0.00043835,30]
[327539265,1716197833625,-500.0,0.00043835,34]
[327539266,1716197833647,-500.0,0.00043835,35]
[327539267,1716197833671,-500.0,0.00043835,36]
[327539268,1716197833696,-500.0,0.00043835,37]
[327539269,1716197833722,-500.0,0.00043835,38]
[327539270,1716197833745,-500.0,0.00043835,39]
[327539271,1716197833769,-180.0,0.00043835,30]
[327539272,1716197833792,-500.0,0.00043835,40]
[327539273,1716197833817,-500.0,0.00043835,41]
[327539274,1716197833840,-500.0,0.00043835,42]
[327539275,1716197833863,-500.0,0.00043835,43]
[327539276,1716197833886,-500.0,0.00043835,44]
[327539277,1716197833910,-504.21252514,0.00043835,45]
[327539278,1716197833934,-500.0,0.00043835,30]
[327539279,1716197833959,-593.17,0.00043835,30]
[327539280,1716197833983,-500.0,0.00043835,30]
[327539281,1716197834008,-501.10097365,0.00043835,30]
[327539282,1716197834034,-500.0,0.00043835,30]
[327539283,1716197834058,-518.81379343,0.00043835,30]
[327539284,1716197834087,-558.83,0.00043835,30]
[327539285,1716197834112,-500.0,0.00043835,30]
[327539286,1716197834137,-647.65,0.00043835,30]
[327539287,1716197834162,-647.65,0.00043835,31]
[327539288,1716197834186,-647.65,0.00043835,32]
[327539289,1716197834210,-647.65,0.00043835,33]
[327539290,1716197834233,-647.65,0.00043835,34]
[327539291,1716197834257,-500.0,0.00043835,30]
[327539292,1716197834280,-647.65,0.00043835,35]
[327539293,1716197834303,-647.65,0.00043835,36]
[327539294,1716197834326,-647.65,0.00043835,37]
[327539295,1716197834350,-647.65,0.00043835,38]
[327539296,1716197834373,-647.65,0.00043835,39]
[327539297,1716197834397,-500.99488443,0.00043835,30]
[327539298,1716197834421,-647.65,0.00043835,40]
[327539299,1716197834445,-647.65,0.00043835,41]
[327539300,1716197834468,-647.65,0.00043835,42]
[327539301,1716197834492,-647.65,0.00043835,43]
[327539302,1716197834514,-647.65,0.00043835,44]
[327539303,1716197834537,-190.58563058,0.00043835,30]
[327539304,1716197834559,-647.65,0.00043835,45]
[327539305,1716197834582,-647.65,0.00043835,46]
[327539306,1716197834606,-647.65,0.00043835,47]
[327539307,1716197834629,-647.65,0.00043835,48]
[327539308,1716197834652,-647.65,0.00043835,49]
[327539309,1716197834675,-647.65,0.00043835,49]
[327539310,1716197834702,-647.65,0.00043835,49]
[327539311,1716197834727,-647.65,0.00043835,49]
[327539312,1716197834752,-500.0,0.00043835,30]
[327539313,1716197834777,-647.75,0.00043835,49]
[327539314,1716197834800,-243.79515942,0.00043835,30]
[327539315,1716197834825,-906.0,0.00043835,30]
[327539316,1716197834850,-500.0,0.00043835,30]
[327539317,1716197834876,-500.0,0.00043835,30]
[327539318,1716197834900,-398.49397402,0.00043835,30]
[327539319,1716197834924,-500.0,0.00043835,30]
[327539320,1716197834951,-500.0,0.00043835,30]
[327539321,1716197834979,-300.25218843,0.00043835,30]
[327539322,1716197835005,-500.0,0.00043835,30]
[327539323,1716197835031,-500.79516664,0.00043835,30]
[327539324,1716197835055,-504.72043299,0.00043835,30]
[327539325,1716197835084,-500.0,0.00043835,30]
[327539326,1716197835109,-505.07560134,0.00043835,30]
[327539327,1716197835135,-500.0,0.00043835,30]
[327539328,1716197835165,-500.0,0.00043835,30]
[327539329,1716197835294,-500.0,0.00043835,30]
[327539330,1716197835323,-598.61881444,0.00043835,30]
[327539331,1716197835351,-503.95671987,0.00043835,30]
[327539332,1716197835378,-500.0,0.00043835,30]
[327539333,1716197835404,-389.99146425,0.00043835,30]
[327539334,1716197835431,-500.0,0.00043835,30]
[327539335,1716197835469,-506.42371575,0.00043835,30]
[327539336,1716197835498,-500.0,0.00043835,30]
[327539337,1716197835527,-507.04841069,0.00043835,30]
[327539338,1716197835555,-500.0,0.00043835,30]
[327539339,1716197835584,-1001.84547682,0.00043835,30]
[327539340,1716197835614,-500.0,0.00043835,30]
[327539341,1716197835643,-491.21178867,0.00043835,30]
[327539342,1716197835671,-504.45141774,0.00043835,30]
[327539343,1716197835706,-500.0,0.00043835,30]
[327539344,1716197835732,-502.10831092,0.00043835,30]
[327539345,1716197835757,-500.0,0.00043835,30]
[327539346,1716197835783,-500.0,0.00043835,30]
[327539347,1716197835809,-260.66813571,0.00043835,30]
[327539348,1716197835834,-513.09527414,0.00043835,30]
[327539349,1716197835859,-500.0,0.00043835,30]
[327539350,1716197835884,-500.0,0.00043835,30]
[327539351,1716197835909,-502.5,0.00043835,30]
[327539352,1716197835933,-500.0,0.00043835,30]
[327539353,1716197835964,-500.0,0.00043835,30]
[327539354,1716197835989,-500.0,0.00043835,30]
[327539355,1716197836013,-500.0,0.00043835,30]
[327539356,1716197836037,-500.0,0.00043835,30]
[327539357,1716197836062,-500.0,0.00043835,30]
[327539358,1716197836089,-500.0,0.00043835,31]
[327539359,1716197836115,-500.0,0.00043835,32]
[327539360,1716197836139,-500.0,0.00043835,33]
[327539361,1716197836163,-500.0,0.00043835,34]
[327539362,1716197836190,-503.81819159,0.00043835,35]
[327539363,1716197836212,-502.31781648,0.00043835,30]
[327539364,1716197836236,-502.59145835,0.00043835,30]
[327539365,1716197836260,-500.0,0.00043835,30]
[327539366,1716197836284,-502.40917785,0.00043835,30]
[327539367,1716197836307,-500.0,0.00043835,30]
[327539368,1716197836330,-502.97511639,0.00043835,30]
[327539369,1716197836354,-500.0,0.00043835,30]
[327539370,1716197836377,-500.0,0.00043835,30]
[327539371,1716197836400,-500.0,0.00043835,30]
[327539372,1716197836426,-502.49455456,0.00043835,30]
[327539373,1716197836452,-500.0,0.00043835,30]
[327539374,1716197836474,-5426.31,0.00043835,30]
[327539375,1716197836498,-3919.68,0.00043835,30]
[327539376,1716197836522,-500.0,0.00043835,30]
[327539377,1716197836545,-500.0,0.00043835,30]
[327539378,1716197836570,-500.0,0.00043835,30]
[327539379,1716197836594,-503.27232601,0.00043835,30]
[327539380,1716197836617,-503.88986862,0.00043835,30]
[327539381,1716197836639,-502.61595629,0.00043835,30]
[327539382,1716197836662,-540.81448696,0.00043835,30]
[327539383,1716197836685,-501.27242285,0.00043835,30]
[327539384,1716197836709,-501.48216698,0.00043835,30]
[327539385,1716197836732,-502.25147921,0.00043835,30]
[327539386,1716197836756,-500.0,0.00043835,30]
[327539387,1716197836779,-501.85992302,0.00043835,30]
[327539388,1716197836802,-506.94159757,0.00043835,30]
[327539389,1716197836825,-502.6265869,0.00043835,30]
[327539390,1716197836848,-500.0,0.00043835,30]
[327539391,1716197836873,-500.0,0.00043835,30]
[327539392,1716197836896,-504.56600843,0.00043835,30]
[327539393,1716197836921,-506.74230861,0.00043835,30]
[327539394,1716197836946,-500.0,0.00043835,30]
[327539395,1716197836970,-500.0,0.00043835,30]
[327539396,1716197836993,-500.0,0.00043835,30]
[327539397,1716197837016,-504.42020937,0.00043835,30]
[327539398,1716197837039,-504.02903503,0.00043835,30]
[327539399,1716197837063,-500.0,0.00043835,30]
[327539400,1716197837090,-500.0,0.00043835,30]
[327539401,1716197837114,-500.0,0.00043835,30]
[327539402,1716197837139,-500.0,0.00043835,30]
[327539403,1716197837164,-500.0,0.00043835,30]
[327539404,1716197837191,-513.05787205,0.00043835,30]
[327539405,1716197837300,-500.0,0.00043835,30]
[327539406,1716197837323,-508.48735415,0.00043835,30]
[327539407,1716197837348,-500.0,0.00043835,30]
[327539408,1716197837371,-501.73833322,0.00043835,30]
[327539409,1716197837395,-502.89071705,0.00043835,30]
[327539410,1716197837418,-501.32013921,0.00043835,30]
[327539411,1716197837443,-540.20489168,0.00043835,30]
[327539412,1716197837466,-500.0,0.00043835,30]
[327539413,1716197837490,-504.77630118,0.00043835,30]
[327539414,1716197837514,-500.0,0.00043835,30]
[327539415,1716197837538,-500.0,0.00043835,30]
[327539416,1716197837561,-2263.18,0.00043835,30]
[327539417,1716197837584,-525.01720436,0.00043835,30]
[327539418,1716197837607,-519.71255828,0.00043835,30]
[327539419,1716197837630,-506.56121354,0.00043835,30]
[327539420,1716197837652,-501.87634161,0.00043835,30]
[327539421,1716197837677,-513.13912251,0.00043835,30]
[327539422,1716197837703,-500.0,0.00043835,30]
[327539423,1716197837726,-500.0,0.00043835,30]
[327539424,1716197837752,-500.0,0.00043835,30]
[327539425,1716197837776,-500.0,0.00043835,20]
[327539426,1716197837804,-500.0,0.00043835,30]
[327539427,1716197837828,-505.80038547,0.00043835,30]
[327539428,1716197837853,-673.01,0.00043835,30]
[327539429,1716197837878,-500.0,0.00043835,30]
[327539430,1716197837903,-500.0,0.00043835,30]
[327539431,1716197837927,-207.83980468,0.00043835,30]
[327539432,1716197837954,-500.0,0.00043835,30]
[327539433,1716197837979,-500.0,0.00043835,30]
[327539434,1716197838003,-1000.0,0.00043835,30]
[327539435,1716197838028,-3801.35,0.00043835,30]
[327539436,1716197838053,-987.08,0.00043835,30]
[327539437,1716197838081,-500.0,0.00043835,30]
[327539438,1716197838105,-500.0,0.00043835,30]
[327539439,1716197838129,-500.0,0.00043835,30]
[327539440,1716197838156,-500.0,0.00043835,30]
[327539441,1716197838180,-502.98371813,0.00043835,30]
[327539442,1716197838205,-500.0,0.00043835,30]
[327539443,1716197838230,-500.0,0.00043835,30]
[327539444,1716197838255,-500.0,0.00043835,30]
[327539445,1716197838279,-503.17581467,0.00043835,30]
[327539446,1716197838303,-501.73481911,0.00043835,30]
[327539447,1716197838327,-301.37054854,0.00043835,30]
[327539448,1716197838350,-695.43,0.00043835,30]
[327539449,1716197838373,-500.0,0.00043835,30]
[327539450,1716197838396,-543.1,0.00043835,30]
[327539451,1716197838419,-503.90584989,0.00043835,30]
[327539452,1716197838444,-417.17306975,0.00043835,30]
[327539453,1716197838468,-500.0,0.00043835,30]
[327539454,1716197838494,-5302.64,0.00043835,30]
[327539455,1716197838517,-500.0,0.00043835,30]
[327539456,1716197838541,-507.16541882,0.00043835,30]
[327539457,1716197838566,-582.49,0.00043835,30]
[327539458,1716197838589,-500.21504838,0.00043835,30]
[327539459,1716197838612,-500.0,0.00043835,30]
[327539460,1716197838635,-508.25799455,0.00043835,30]
[327539461,1716197838658,-500.0,0.00043835,30]
[327539462,1716197838680,-500.0,0.00043835,30]
[327539463,1716197838705,-249.24835051,0.00043835,30]
[327539464,1716197838727,-500.0,0.00043835,30]
[327539465,1716197838751,-500.0,0.00043835,30]
[327539466,1716197838776,-500.0,0.00043835,30]
[327539467,1716197838800,-500.0,0.00043835,30]
[327539468,1716197838824,-500.0,0.00043835,30]
[327539469,1716197838848,-500.0,0.00043835,30]
[327539470,1716197838871,-500.0,0.00043835,30]
[327539471,1716197838897,-500.0,0.00043835,30]
[327539472,1716197838920,-501.2806415,0.00043835,30]
[327539473,1716197838945,-500.0,0.00043835,30]
[327539474,1716197838968,-500.0,0.00043835,30]
[327539475,1716197838991,-502.19920621,0.00043835,30]
[327539476,1716197839016,-500.0,0.00043835,30]
[327539477,1716197839120,-500.0,0.00043835,30]
[327539478,1716197839147,-500.0,0.00043835,30]
[327539479,1716197839174,-604.87,0.00043835,30]
[327539480,1716197839200,-500.0,0.00043835,30]
[327539481,1716197839223,-500.0,0.00043835,30]
[327539482,1716197839245,-502.61816392,0.00043835,30]
[327539483,1716197839267,-500.0,0.00043835,30]
[327539484,1716197839290,-502.66024029,0.00043835,30]
[327539485,1716197839314,-500.0,0.00043835,30]
[327539486,1716197839336,-500.0,0.00043835,30]
[327539487,1716197839360,-500.0,0.00043835,30]
[327539488,1716197839388,-500.0,0.00043835,30]
[327539489,1716197839412,-500.0,0.00043835,30]
[327539490,1716197839437,-500.0,0.00043835,30]
[327539491,1716197839471,-500.0,0.00043835,30]
[327539492,1716197839499,-644.89,0.00043835,30]
[327539493,1716197839527,-2270.75,0.00043835,30]
[327539494,1716197839557,-151.0,0.00043835,30]
[327539495,1716197839584,-500.0,0.00043835,30]
[327539496,1716197839611,-500.0,0.00043835,30]
[327539497,1716197839638,-3149.25,0.00043835,30]
[327539498,1716197839661,-500.0,0.00043835,30]
[327539499,1716197839686,-500.0,0.00043835,30]
[327539500,1716197839716,-500.0,0.00043835,30]
[327539501,1716197839739,-500.0,0.00043835,30]
[327539502,1716197839763,-782.66,0.00043835,30]
[327539503,1716197839787,-500.0,0.00043835,30]
[327539504,1716197839811,-500.0,0.00043835,30]
[327539505,1716197839835,-500.0,0.00043835,30]
[327539506,1716197839860,-500.0,0.00043835,30]
[327539507,1716197839884,-502.63299107,0.00043835,30]
[327539508,1716197839908,-500.0,0.00043835,30]
[327539509,1716197839933,-500.0,0.00043835,30]
[327539510,1716197839960,-500.0,0.00043835,30]
[327539511,1716197839986,-849.15,0.00043835,21]
[327539512,1716197840011,-543.82078266,0.00043835,30]
[327539513,1716197840034,-500.0,0.00043835,30]
[327539514,1716197840058,-500.92154115,0.00043835,30]
[327539515,1716197840086,-500.0,0.00043835,30]
[327539516,1716197840109,-564.54,0.00043835,30]
[327539517,1716197840132,-500.0,0.00043835,30]
[327539518,1716197840157,-500.0,0.00043835,30]
[327539519,1716197840181,-500.0,0.00043835,30]
[327539520,1716197840209,-259.31464291,0.00043835,30]
[327539521,1716197840233,-2611.13,0.00043835,30]
[327539522,1716197840257,-500.0,0.00043835,30]
[327539523,1716197840282,-500.0,0.00043835,30]
[327539524,1716197840306,-500.0,0.00043835,30]
[327539525,1716197840332,-501.69699499,0.00043835,30]
[327539526,1716197840355,-500.0,0.00043835,30]
[327539527,1716197840378,-500.0,0.00043835,30]
[327539528,1716197840401,-501.37380739,0.00043835,30]
[327539529,1716197840426,-1155.5,0.00043835,30]
[327539530,1716197840452,-500.0,0.00043835,30]
[327539531,1716197840476,-500.0,0.00043835,30]
[327539532,1716197840500,-501.47115793,0.00043835,30]
[327539533,1716197840524,-500.0,0.00043835,30]
[327539534,1716197840549,-500.0,0.00043835,30]
[327539535,1716197840574,-500.0,0.00043835,30]
[327539536,1716197840599,-500.0,0.00043835,30]
[327539537,1716197840627,-26814.17,0.00043835,30]
[327539538,1716197840653,-500.0,0.00043835,30]
[327539539,1716197840677,-500.0,0.00043835,30]
[327539540,1716197840704,-500.0,0.00043835,30]
[327539541,1716197840728,-500.0,0.00043835,31]
[327539542,1716197840752,-500.0,0.00043835,32]
[327539543,1716197840776,-500.0,0.00043835,33]
[327539544,1716197840800,-500.0,0.00043835,34]
[327539545,1716197840824,-500.0,0.00043835,35]
[327539546,1716197840848,-500.0,0.00043835,36]
[327539547,1716197840872,-500.0,0.00043835,37]
[327539548,1716197840985,-500.0,0.00043835,30]
[327539549,1716197841011,-500.0,0.00043835,38]
[327539550,1716197841036,-500.0,0.00043835,39]
[327539551,1716197841060,-1202.38,0.00043835,30]
[327539552,1716197841089,-551.10081897,0.00043835,40]
[327539553,1716197841114,-500.0,0.00043835,30]
[327539554,1716197841139,-500.0,0.00043835,30]
[327539555,1716197841164,-500.0,0.00043835,30]
[327539556,1716197841190,-2479.96,0.00043835,30]
[327539557,1716197841218,-2479.96,0.00043835,31]
[327539558,1716197841245,-2479.96,0.00043835,32]
[327539559,1716197841269,-500.0,0.00043835,30]
[327539560,1716197841294,-2479.96,0.00043835,33]
[327539561,1716197841318,-2479.96,0.00043835,34]
[327539562,1716197841341,-503.45620608,0.00043835,30]
[327539563,1716197841368,-2479.96,0.00043835,35]
[327539564,1716197841392,-500.0,0.00043835,30]
[327539565,1716197841416,-2479.96,0.00043835,36]
[327539566,1716197841442,-2479.96,0.00043835,37]
[327539567,1716197841467,-500.0,0.00043835,30]
[327539568,1716197841491,-500.0,0.00043835,30]
[327539569,1716197841516,-2479.96,0.00043835,38]
[327539570,1716197841545,-2479.96,0.00043835,39]
[327539571,1716197841572,-2479.96,0.00043835,40]
[327539572,1716197841595,-288.80856442,0.00043835,30]
[327539573,1716197841621,-2479.96,0.00043835,41]
[327539574,1716197841647,-611.52,0.00043835,30]
[327539575,1716197841673,-2479.96,0.00043835,42]
[327539576,1716197841707,-2479.96,0.00043835,43]
[327539577,1716197841733,-2479.96,0.00043835,44]
[327539578,1716197841757,-537.9678527,0.00043835,30]
[327539579,1716197841786,-2479.96,0.00043835,45]
[327539580,1716197841813,-2479.96,0.00043835,46]
[327539581,1716197841840,-2479.96,0.00043835,47]
[327539582,1716197841866,-449.56712829,0.00043835,30]
[327539583,1716197841893,-2479.96,0.00043835,48]
[327539584,1716197841919,-2479.96,0.00043835,49]
[327539585,1716197841948,-2479.96,0.00043835,49]
[327539586,1716197841975,-2479.96,0.00043835,49]
[327539587,1716197842002,-2479.96,0.00043835,49]
[327539588,1716197842032,-500.0,0.00043835,30]
[327539589,1716197842060,-2480.12973127,0.00043835,49]
[327539590,1716197842096,-500.0,0.00043835,30]
[327539591,1716197842122,-500.0,0.00043835,30]
[327539592,1716197842147,-500.0,0.00043835,30]
[327539593,1716197842173,-505.87716427,0.00043835,30]
[327539594,1716197842200,-500.0,0.00043835,30]
[327539595,1716197842224,-500.0,0.00043835,30]
[327539596,1716197842249,-501.65332219,0.00043835,30]
[327539597,1716197842276,-500.0,0.00043835,30]
[327539598,1716197842301,-500.0,0.00043835,30]
[327539599,1716197842326,-500.0,0.00043835,30]
[327539600,1716197842352,-971.52,0.00043835,30]
[327539601,1716197842378,-500.0,0.00043835,30]
[327539602,1716197842404,-500.0,0.00043835,30]
[327539603,1716197842430,-505.72327232,0.00043835,30]
[327539604,1716197842457,-500.0,0.00043835,30]
[327539605,1716197842483,-500.0,0.00043835,30]
[327539606,1716197842508,-500.53698826,0.00043835,30]
[327539607,1716197842534,-500.0,0.00043835,30]
[327539608,1716197842558,-500.0,0.00043835,30]
[327539609,1716197842583,-768.77926999,0.00043838,28]
[327539610,1716197842608,-323.0,0.00043979,90]
[327539611,1716197842633,-237.0,0.00044079,35]
[327539612,1716197842660,-189.0,0.00044079,35]
[327539613,1716197842686,-376.0,0.00044079,35]
[327539614,1716197842714,-237.0,0.00044089,35]
[327539615,1716197842824,-189.0,0.00044089,35]
[327539616,1716197842850,-376.0,0.00044089,35]
[327539617,1716197842877,-237.0,0.00044099,35]
[327539618,1716197842905,-189.0,0.00044099,35]
[327539619,1716197842932,-376.0,0.00044099,35]
[327539620,1716197842961,-591.21480233,0.00044109,31]
[327539621,1716197842990,-500.0,0.00044109,31]
[327539622,1716197843016,-500.0,0.00044109,31]
[327539623,1716197843043,-510.21141828,0.00044109,31]
[327539624,1716197843075,-500.0,0.00044109,31]
[327539625,1716197843101,-185.14036813,0.00044109,31]
[327539626,1716197843134,-495.61140742,0.00044109,31]
[327539627,1716197843162,-504.48064532,0.00044109,31]
[327539628,1716197843189,-511.59663195,0.00044109,31]
[327539629,1716197843220,-613.4453009,0.00044109,31]
[327539630,1716197843246,-337.43540898,0.00044109,31]
[327539631,1716197843273,-500.0,0.00044109,31]
[327539632,1716197843299,-500.0,0.00044109,31]
[327539633,1716197843325,-531.45428222,0.00044109,31]
[327539634,1716197843351,-500.0,0.00044109,31]
[327539635,1716197843376,-424.23867969,0.00044109,31]
[327539636,1716197843402,-500.0,0.00044109,31]
[327539637,1716197843428,-504.70653902,0.00044109,31]
[327539638,1716197843456,-177.24256669,0.00044109,31]
[327539639,1716197843481,-1063.94,0.00044109,31]
[327539640,1716197843505,-500.0,0.00044109,31]
[327539641,1716197843529,-1306.3,0.00044109,31]
[327539642,1716197843557,-503.16599572,0.00044109,31]
[327539643,1716197843583,-504.30416154,0.00044109,31]
[327539644,1716197843607,-503.8284645,0.00044109,31]
[327539645,1716197843631,-500.0,0.00044109,31]
[327539646,1716197843656,-504.4989409,0.00044109,31]
[327539647,1716197843681,-501.9494405,0.00044109,31]
[327539648,1716197843708,-500.0,0.00044109,31]
[327539649,1716197843732,-500.0,0.00044109,31]
[327539650,1716197843759,-500.0,0.00044109,31]
[327539651,1716197843785,-513.83092331,0.00044109,31]
[327539652,1716197843812,-500.0,0.00044109,31]
[327539653,1716197843838,-500.0,0.00044109,31]
[327539654,1716197843865,-500.0,0.00044109,31]
[327539655,1716197843892,-500.0,0.00044109,31]
[327539656,1716197843917,-505.18966962,0.00044109,31]
[327539657,1716197843944,-500.0,0.00044109,31]
[327539658,1716197843971,-500.0,0.00044109,31]
[327539659,1716197843996,-500.0,0.00044109,31]
[327539660,1716197844022,-2979.56,0.00044109,31]
[327539661,1716197844050,-503.84430482,0.00044109,31]
[327539662,1716197844081,-151.48466758,0.00044109,31]
[327539663,1716197844108,-535.93415171,0.00044109,31]
[327539664,1716197844138,-500.0,0.00044109,31]
[327539665,1716197844167,-500.0,0.00044109,31]
[327539666,1716197844194,-500.0,0.00044109,31]
[327539667,1716197844221,-505.60296648,0.00044109,31]
[327539668,1716197844247,-511.75561351,0.00044109,31]
[327539669,1716197844272,-500.0,0.00044109,31]
[327539670,1716197844296,-510.91,0.00044109,31]
[327539671,1716197844321,-524.29763046,0.00044109,31]
[327539672,1716197844345,-567.71726078,0.00044109,31]
[327539673,1716197844369,-502.88772558,0.00044109,31]
[327539674,1716197844394,-2487.5,0.00044109,31]
[327539675,1716197844420,-502.42572595,0.00044109,31]
[327539676,1716197844448,-529.17,0.00044109,31]
[327539677,1716197844471,-500.0,0.00044109,31]
[327539678,1716197844495,-507.95435561,0.00044109,31]
[327539679,1716197844519,-523.08610527,0.00044109,31]
[327539680,1716197844543,-503.76035547,0.00044109,31]
[327539681,1716197844648,-500.0,0.00044109,31]
[327539682,1716197844674,-500.0,0.00044109,31]
[327539683,1716197844703,-500.0,0.00044109,31]
[327539684,1716197844729,-500.0,0.00044109,31]
[327539685,1716197844755,-500.0,0.00044109,31]
[327539686,1716197844781,-500.0,0.00044109,31]
[327539687,1716197844806,-500.0,0.00044109,31]
[327539688,1716197844831,-591.87126558,0.00044109,31]
[327539689,1716197844857,-505.58378198,0.00044109,31]
[327539690,1716197844883,-500.0,0.00044109,31]
[327539691,1716197844910,-503.26212572,0.00044109,31]
[327539692,1716197844936,-509.93420702,0.00044109,31]
[327539693,1716197844966,-500.0,0.00044109,31]
[327539694,1716197844992,-505.6746562,0.00044109,31]
[327539695,1716197845019,-500.0,0.00044109,31]
[327539696,1716197845045,-500.0,0.00044109,31]
[327539697,1716197845072,-500.0,0.00044109,31]
[327539698,1716197845100,-500.0,0.00044109,31]
[327539699,1716197845126,-500.0,0.00044109,31]
[327539700,1716197845154,-500.0,0.00044109,31]